{"text_format":"1","workbook":"xlsx","n_sheets":2,"sheets":["Alum","Drawings"],"not_rendered":{"charts":0,"images":15,"macros":1,"external_links":0,"defined_names":14,"comments":0,"pivot_tables":0},"unopened":[],"bounds":{"document_bytes":16777216,"sheet_cells":100000,"rows_first":2000,"rows_last":500,"rows_between":2000,"halvings":0,"cell_chars":16384,"cell_head_chars":4096},"cells_cut":0,"cells_raw":0,"read":"whole","date_system":"1900"}

{"sheet":"Alum","index":0,"n_rows":420,"n_cols":46,"rows_kept":420,"cut":false,"hidden":false,"merged":[[192,6,205,23],[187,16,188,23],[189,16,189,23],[190,16,190,23],[207,6,220,23],[236,5,237,10],[184,0,184,5],[184,6,184,14],[184,15,184,17],[184,18,184,23],[186,0,186,2],[186,4,186,5],[186,6,186,12],[186,13,186,21],[188,0,188,2],[188,3,188,5],[188,6,188,15],[189,5,190,5],[190,6,190,15],[209,0,209,2],[1,6,1,9],[61,6,61,9],[2,1,2,2],[2,4,2,5],[6,6,6,12],[9,5,10,5],[14,0,14,2],[14,3,14,5],[16,0,16,2],[2,10,2,23],[4,0,4,5],[4,6,4,14],[4,15,4,17],[4,18,4,23],[6,13,6,21],[7,16,8,23],[8,0,8,2],[8,3,8,5],[8,6,8,15],[6,0,6,2],[6,4,6,5],[9,16,9,23],[10,6,10,15],[10,16,10,23],[13,3,13,5],[16,3,16,5],[18,0,18,5],[20,0,20,1],[20,2,20,3],[20,4,20,5],[22,0,22,5],[24,0,24,5],[12,6,25,23],[27,6,40,23],[28,3,28,5],[29,0,29,2],[29,3,29,5],[31,0,31,2],[31,3,31,5],[33,0,33,5],[35,0,35,1],[35,2,35,3],[35,4,35,5],[37,0,37,5],[39,0,39,5],[42,6,55,23],[43,3,43,5],[44,0,44,2],[44,3,44,5],[46,0,46,2],[46,3,46,5],[48,0,48,5],[50,0,50,1],[50,2,50,3],[50,4,50,5],[52,0,52,5],[54,0,54,5],[62,1,62,2],[62,4,62,5],[56,5,57,10],[62,10,62,23],[64,0,64,5],[64,6,64,14],[64,15,64,17],[64,18,64,23],[68,0,68,2],[68,3,68,5],[68,6,68,15],[66,0,66,2],[66,4,66,5],[66,6,66,12],[66,13,66,21],[69,5,70,5],[69,16,69,23],[70,6,70,15],[70,16,70,23],[78,0,78,5],[67,16,68,23],[80,0,80,1],[80,2,80,3],[80,4,80,5],[73,3,73,5],[74,0,74,2],[74,3,74,5],[76,0,76,2],[76,3,76,5],[95,2,95,3],[95,4,95,5],[97,0,97,5],[99,0,99,5],[106,0,106,2],[106,3,106,5],[82,0,82,5],[84,0,84,5],[87,6,100,23],[88,3,88,5],[89,0,89,2],[89,3,89,5],[91,0,91,2],[91,3,91,5],[93,0,93,5],[95,0,95,1],[116,5,117,10],[122,1,122,2],[122,4,122,5],[122,10,122,23],[102,6,115,23],[103,3,103,5],[104,0,104,2],[104,3,104,5],[108,0,108,5],[110,0,110,1],[110,2,110,3],[110,4,110,5],[112,0,112,5],[114,0,114,5],[121,6,121,9],[124,0,124,5],[124,6,124,14],[124,15,124,17],[124,18,124,23],[126,0,126,2],[126,4,126,5],[126,6,126,12],[126,13,126,21],[127,16,128,23],[128,0,128,2],[128,3,128,5],[128,6,128,15],[129,5,130,5],[129,16,129,23],[130,6,130,15],[130,16,130,23],[132,6,145,23],[133,3,133,5],[134,0,134,2],[134,3,134,5],[136,0,136,2],[136,3,136,5],[138,0,138,5],[140,0,140,1],[140,2,140,3],[140,4,140,5],[142,0,142,5],[144,0,144,5],[147,6,160,23],[148,3,148,5],[149,0,149,2],[149,3,149,5],[151,0,151,2],[151,3,151,5],[153,0,153,5],[155,0,155,1],[155,2,155,3],[155,4,155,5],[157,0,157,5],[159,0,159,5],[182,1,182,2],[182,4,182,5],[182,10,182,23],[162,6,175,23],[163,3,163,5],[164,0,164,2],[164,3,164,5],[176,18,176,19],[176,21,176,22],[166,0,166,2],[166,3,166,5],[168,0,168,5],[170,0,170,1],[170,2,170,3],[170,4,170,5],[172,0,172,5],[174,0,174,5],[176,5,177,10],[181,6,181,9],[215,2,215,3],[215,4,215,5],[213,0,213,5],[215,0,215,1],[224,3,224,5],[226,0,226,2],[209,3,209,5],[193,3,193,5],[194,0,194,2],[194,3,194,5],[196,0,196,2],[196,3,196,5],[217,0,217,5],[219,0,219,5],[211,3,211,5],[198,0,198,5],[200,0,200,1],[200,2,200,3],[200,4,200,5],[202,0,202,5],[204,0,204,5],[208,3,208,5],[211,0,211,2],[222,6,235,23],[223,3,223,5],[224,0,224,2],[230,0,230,1],[230,2,230,3],[230,4,230,5],[226,3,226,5],[242,1,242,2],[242,4,242,5],[242,10,242,23],[236,21,236,22],[228,0,228,5],[232,0,232,5],[234,0,234,5],[241,6,241,9],[244,0,244,5],[244,6,244,14],[244,15,244,17],[244,18,244,23],[236,18,236,19],[248,0,248,2],[248,3,248,5],[248,6,248,15],[246,0,246,2],[246,4,246,5],[246,6,246,12],[246,13,246,21],[247,16,248,23],[249,5,250,5],[249,16,249,23],[250,6,250,15],[250,16,250,23],[258,0,258,5],[260,0,260,1],[260,2,260,3],[260,4,260,5],[253,3,253,5],[254,0,254,2],[254,3,254,5],[256,0,256,2],[256,3,256,5],[262,0,262,5],[264,0,264,5],[267,6,280,23],[268,3,268,5],[269,0,269,2],[269,3,269,5],[271,0,271,2],[271,3,271,5],[273,0,273,5],[275,0,275,1],[275,2,275,3],[275,4,275,5],[277,0,277,5],[279,0,279,5],[294,0,294,5],[296,5,297,10],[302,1,302,2],[302,4,302,5],[302,10,302,23],[296,18,296,19],[296,21,296,22],[282,6,295,23],[283,3,283,5],[288,0,288,5],[290,0,290,1],[290,2,290,3],[290,4,290,5],[284,0,284,2],[284,3,284,5],[286,0,286,2],[286,3,286,5],[292,0,292,5],[301,6,301,9],[318,0,318,5],[304,0,304,5],[304,6,304,14],[304,15,304,17],[304,18,304,23],[308,0,308,2],[308,3,308,5],[308,6,308,15],[306,0,306,2],[306,4,306,5],[313,3,313,5],[314,0,314,2],[314,3,314,5],[316,0,316,2],[316,3,316,5],[306,13,306,21],[309,5,310,5],[309,16,309,23],[310,6,310,15],[310,16,310,23],[320,0,320,1],[320,2,320,3],[320,4,320,5],[350,0,350,1],[350,2,350,3],[350,4,350,5],[344,0,344,2],[344,3,344,5],[322,0,322,5],[324,0,324,5],[328,3,328,5],[329,0,329,2],[329,3,329,5],[335,2,335,3],[335,4,335,5],[337,0,337,5],[339,0,339,5],[348,0,348,5],[343,3,343,5],[331,0,331,2],[331,3,331,5],[333,0,333,5],[335,0,335,1],[364,0,364,5],[364,6,364,14],[364,15,364,17],[364,18,364,23],[346,0,346,2],[346,3,346,5],[352,0,352,5],[354,0,354,5],[356,5,357,10],[362,1,362,2],[362,4,362,5],[362,10,362,23],[356,18,356,19],[356,21,356,22],[361,6,361,9],[368,0,368,2],[368,3,368,5],[368,6,368,15],[366,0,366,2],[366,4,366,5],[366,6,366,12],[366,13,366,21],[369,5,370,5],[369,16,369,23],[370,6,370,15],[370,16,370,23],[378,0,378,5],[380,0,380,1],[380,2,380,3],[380,4,380,5],[373,3,373,5],[374,0,374,2],[374,3,374,5],[376,0,376,2],[376,3,376,5],[404,0,404,2],[404,3,404,5],[406,0,406,2],[406,3,406,5],[382,0,382,5],[384,0,384,5],[387,6,400,23],[388,3,388,5],[389,0,389,2],[389,3,389,5],[391,0,391,2],[391,3,391,5],[393,0,393,5],[395,0,395,1],[395,2,395,3],[395,4,395,5],[397,0,397,5],[399,0,399,5],[416,18,416,19],[416,21,416,22],[412,0,412,5],[414,0,414,5],[416,5,417,10],[56,21,56,22],[56,18,56,19],[116,18,116,19],[116,21,116,22],[72,6,85,23],[402,6,415,23],[372,6,385,23],[367,16,368,23],[312,6,325,23],[307,16,308,23],[252,6,265,23],[342,6,355,23],[327,6,340,23],[306,6,306,12],[408,0,408,5],[410,0,410,1],[410,2,410,3],[410,4,410,5],[403,3,403,5]]}
[null,"*** TO ENSURE QUICK AND ACCURATE QUOTE PLEASE ANSWER ALL QUESTIONS ***",null,null,null,null,null,null,null,null,null,null,null,null,null,null,null,null,null,null,null,null,null,null,null,null,null,null,null,null,null,null,null,null,null,null,{"$f":"TRIM(\"$A$1:$Y$\"&AO2)","v":"$A$1:$Y$0"},{"$f":"AK2","v":0}]
[null,null,null,null,null,"DATE:",null,null,null,null,null,null,null,null,null,null,null,null,null,null,null,null,null,null,null,null,null,null,null,null,null,null,null,null,null,null,{"$f":"SUM(AF1:AF5000)","v":0},null,null,null,{"$f":"AK2*60","v":0}]
["Bid To:",null,null,"Contact:",null,null,"Job Name:"]
["Address:",null,null,null,null,null,"Ship to City:",null,null,null,null,null,null,null,null,"State:",null,null,"Zip:",null,null,null,null,null,null,null,null,null,null,null,null,null,null,"YES",null,null,null,null,"NO",null,null,null,null,null,null,"NO"]
[null,null,null,null,null,null,null,null,null,null,null,null,null,null,null,null,null,null,null,null,null,null,null,null,null,null,null,null,null,null,null,null,null,"NO",null,null,null,null,"WITH FLANGE",null,null,null,null,null,null,"3/4\""]
["CITY:",null,null,"State:","Zip: ",null,"Project specs exsist:",null,null,null,null,null,null,"Gerkin Windows specified",null,null,null,null,null,null,null,null,null,null,null,null,null,null,null,null,null,null,null,null,null,null,null,null,"NO FLANGE",null,null,null,null,null,null,"1/2\""]
[]
["Phone:",null,null,"   Fax / EMail: ",null,null,"Bid as a voluntary alternate:",null,null,null,null,null,null,null,null,null,null,null,null,null,null,null,null,null,null,null,null,null,null,null,null,null,null,null,null,null,null,null,"NONE",null,null,null,null,null,null,"NONE"]
[null,null,null,null,null,null,null,null,null,null,null,null,null,null,null,null,null,null,null,null,null,null,null,null,null,null,null,null,null,null,null,null,null,null,null,null,null,null,"STANDARD",null,null,null,null,null,null,"RECTANGLE"]
["Project start date:",null,null,"Requested Number",null,null,"Building type:",null,null,null,null,null,null,null,null,null,"Number of stories:",null,null,null,null,null,null,null,null,null,null,null,null,null,null,null,null,null,null,null,null,null,"PRAIRIE",null,null,null,null,null,null,"CONTOUR"]
["Project finish date:",null,null,null,"of Deliveries:",null,null,null,null,null,null,null,null,null,null,null,null,null,null,null,null,null,null,null,null,null,null,null,null,null,null,null,null,null,null,null,null,null,"PRAIRIE 1"]
[null,"     TAG:",null,"  WIDTH","X","HEIGHT",null,null,null,"      WINDOW SKETCH FROM EXTERIOR",null,null,null,null,null,null,null,null,null,null,null,null,null,null,null,null,null,null,null,null,null,{"$f":"IF(A12>0,1,0)","v":0},null,null,null,null,null,null,"CUSTOM (PER SKETCH)"]
["Model:",null,null,null,"X",null," "]
[null,null,null,"SPECIFY SIZING NEEDED"]
[null,null,null,null,null,null,null,null,null,null,null,null,null,null,null,null,null,null,null,null,null,null,null,null,null,null,null,null,null,null,null,null,null,null,null,null,null,null,"ROUGH OPENING"]
["Color:",null,null,"Operation:",null,null,null,null,null,null,null,null,null,null,null,null,null,null,null,null,null,null,null,null,null,null,null,null,null,null,null,null,null,null,null,null,null,null,"WINDOW DIMENSION"]
[]
["Glass type:",null,null,null,null,null,null,null,null,null,null,null,null,null,null,null,null,null,null,null,null,null,null,null,null,null,null,null,null,null,null,null,null,null,null,null,null,null,1]
[null,null,null,null,null,null,null,null,null,null,null,null,null,null,null,null,null,null,null,null,null,null,null,null,null,null,null,null,null,null,null,null,null,null,null,null,null,null,2]
["Nail Fin: ",null,"Subframe Needed: ",null,"Panning Needed:",null,null,null,null,null,null,null,null,null,null,null,null,null,null,null,null,null,null,null,null,null,null,null,null,null,null,null,null,null,null,null,null,null,3]
[null,null,null,null,null,null,null,null,null,null,null,null,null,null,null,null,null,null,null,null,null,null,null,null,null,null,null,null,null,null,null,null,null,null,null,null,null,null,4]
["Additional Accessories:",null,null,null,null,null,null,null,null,null,null,null,null,null,null,null,null,null,null,null,null,null,null,null,null,null,null,null,null,null,null,null,null,null,null,null,null,null,5]
[null,null,null,null,null,null,null,null,null,null,null,null,null,null,null,null,null,null,null,null,null,null,null,null,null,null,null,null,null,null,null,null,null,null,null,null,null,null,6]
["Notes:",null,null,null,null,null,null,null,null,null,null,null,null,null,null,null,null,null,null,null,null,null,null,null,null,null,null,null,null,null,null,null,null,null,null,null,null,null,7]
[null,null,null,null,null,null,null,null,null,null,null,null,null,null,null,null,null,null,null,null,null,null,null,null,null,null,null,null,null,null,null,null,null,null,null,null,null,null,8]
["** If windows need to be quoted per project specs please include copy **",null,null,null,null,null,null,null,null,null,null,null,null,null,null,null,null,null,null,null,null,null,null,null,null,null,null,null,null,null,null,null,null,null,null,null,null,null,9]
[null,"     TAG:",null,"  WIDTH","X","HEIGHT",null,null,null,"      WINDOW SKETCH FROM EXTERIOR",null,null,null,null,null,null,null,null,null,null,null,null,null,null,null,null,null,null,null,null,null,null,null,null,null,null,null,null,"OVER 9"]
["Model:",null,null,null,"X",null," "]
[null,null,null,"SPECIFY SIZING NEEDED"]
[]
["Color:",null,null,"Operation:"]
[]
["Glass type:"]
[]
["Nail Fin: ",null,"Subframe Needed: ",null,"Panning Needed:"]
[]
["Additional Accessories:"]
[]
["Notes:"]
[]
["** If windows need to be quoted per project specs please include copy **"]
[null,"     TAG:",null,"  WIDTH","X","HEIGHT",null,null,null,"      WINDOW SKETCH FROM EXTERIOR"]
["Model:",null,null,null,"X",null," "]
[null,null,null,"SPECIFY SIZING NEEDED"]
[]
["Color:",null,null,"Operation:"]
[]
["Glass type:"]
[]
["Nail Fin: ",null,"Subframe Needed: ",null,"Panning Needed:"]
[null,null,null,null,null,null,null,null,null,null,null,null,null,null,null,null,null,null,null,null,null,null,null,null,null,null,null,null,null,null,null,"`"]
["Additional Accessories:"]
[]
["Notes:"]
[]
["** If windows need to be quoted per project specs please include copy **"]
[null,null,"Gerkin Windows & Doors",null,null,"Rhino Quote Sheet",null,null,null,null,null,null,null,null,"PAGE",null,null,null,1,null,"OF",{"$f":"AK2","v":0}]
[null,null,"P.O Box 3203"]
[null,null,"Sioux City IA.         51102"]
[null,null,"Phone: (402) 494-6000  (800) 475-5061",null,null,null,null,"Fax: (402) 494-6765",null,null,null,null,null,null,null,null,null,null,null,null,null,null,null,"Gerkin Rhino Qoute 02/17/2006"]
[null,"*** TO ENSURE QUICK AND ACCURATE QUOTE PLEASE ANSWER ALL QUESTIONS ***"]
[null,null,null,null,null,"DATE:"]
["Bid To:",{"$f":"bidto","v":0},null,"Contact:",{"$f":"contact","v":0},null,"Job Name:",null,null,null,{"$f":"jobname","v":0}]
["Address:",null,null,null,null,null,"Ship to City:",null,null,null,null,null,null,null,null,"State:",null,null,"Zip:",null,null,null,null,null,null,null,null,null,null,null,null,null,null,"YES",null,null,null,null,"NO",null,null,null,null,null,null,"NO"]
[{"$f":"adress","v":0},null,null,null,null,null,{"$f":"shptocity","v":0},null,null,null,null,null,null,null,null,{"$f":"shptostate","v":0},null,null,{"$f":"shptozip","v":0},null,null,null,null,null,null,null,null,null,null,null,null,null,null,"NO",null,null,null,null,"WITH FLANGE",null,null,null,null,null,null,"3/4\""]
["CITY:",null,null,"State:","Zip: ",null,"Project specs exsist:",null,null,null,null,null,null,"Gerkin Windows specified",null,null,null,null,null,null,null,null,null,null,null,null,null,null,null,null,null,null,null,null,null,null,null,null,"NO FLANGE",null,null,null,null,null,null,"1/2\""]
[{"$f":"city","v":0},null,null,{"$f":"state","v":0},{"$f":"zip","v":0}]
["Phone:",null,null,"   Fax / EMail: ",null,null,"Bid as a voluntary alternate:",null,null,null,null,null,null,null,null,null,null,null,null,null,null,null,null,null,null,null,null,null,null,null,null,null,null,null,null,null,null,null,"NONE",null,null,null,null,null,null,"NONE"]
[{"$f":"phone","v":0},null,null,{"$f":"email","v":0},null,null,null,null,null,null,null,null,null,null,null,null,null,null,null,null,null,null,null,null,null,null,null,null,null,null,null,null,null,null,null,null,null,null,"STANDARD",null,null,null,null,null,null,"RECTANGLE"]
["Project start date:",null,null,"Requested Number",null,null,"Building type:",null,null,null,null,null,null,null,null,null,"Number of stories:",null,null,null,null,null,null,null,null,null,null,null,null,null,null,null,null,null,null,null,null,null,"PRAIRIE",null,null,null,null,null,null,"CONTOUR"]
["Project finish date:",null,null,null,"of Deliveries:",null,null,null,null,null,null,null,null,null,null,null,null,null,null,null,null,null,null,null,null,null,null,null,null,null,null,null,null,null,null,null,null,null,"PRAIRIE 1"]
[null,"     TAG:",null,"  WIDTH","X","HEIGHT",null,null,null,"      WINDOW SKETCH FROM EXTERIOR",null,null,null,null,null,null,null,null,null,null,null,null,null,null,null,null,null,null,null,null,null,{"$f":"IF(A72>0,1,0)","v":0},null,null,null,null,null,null,"CUSTOM (PER SKETCH)"]
["Model:",null,null,null,"X",null," "]
[null,null,null,"SPECIFY SIZING NEEDED"]
[null,null,null,null,null,null,null,null,null,null,null,null,null,null,null,null,null,null,null,null,null,null,null,null,null,null,null,null,null,null,null,null,null,null,null,null,null,null,"ROUGH OPENING"]
["Color:",null,null,"Operation:",null,null,null,null,null,null,null,null,null,null,null,null,null,null,null,null,null,null,null,null,null,null,null,null,null,null,null,null,null,null,null,null,null,null,"WINDOW DIMENSION"]
[]
["Glass type:",null,null,null,null,null,null,null,null,null,null,null,null,null,null,null,null,null,null,null,null,null,null,null,null,null,null,null,null,null,null,null,null,null,null,null,null,null,1]
[null,null,null,null,null,null,null,null,null,null,null,null,null,null,null,null,null,null,null,null,null,null,null,null,null,null,null,null,null,null,null,null,null,null,null,null,null,null,2]
["Nail Fin: ",null,"Subframe Needed: ",null,"Panning Needed:",null,null,null,null,null,null,null,null,null,null,null,null,null,null,null,null,null,null,null,null,null,null,null,null,null,null,null,null,null,null,null,null,null,3]
[null,null,null,null,null,null,null,null,null,null,null,null,null,null,null,null,null,null,null,null,null,null,null,null,null,null,null,null,null,null,null,null,null,null,null,null,null,null,4]
["Additional Accessories:",null,null,null,null,null,null,null,null,null,null,null,null,null,null,null,null,null,null,null,null,null,null,null,null,null,null,null,null,null,null,null,null,null,null,null,null,null,5]
[null,null,null,null,null,null,null,null,null,null,null,null,null,null,null,null,null,null,null,null,null,null,null,null,null,null,null,null,null,null,null,null,null,null,null,null,null,null,6]
["Notes:",null,null,null,null,null,null,null,null,null,null,null,null,null,null,null,null,null,null,null,null,null,null,null,null,null,null,null,null,null,null,null,null,null,null,null,null,null,7]
[null,null,null,null,null,null,null,null,null,null,null,null,null,null,null,null,null,null,null,null,null,null,null,null,null,null,null,null,null,null,null,null,null,null,null,null,null,null,8]
["** If windows need to be quoted per project specs please include copy **",null,null,null,null,null,null,null,null,null,null,null,null,null,null,null,null,null,null,null,null,null,null,null,null,null,null,null,null,null,null,null,null,null,null,null,null,null,9]
[null,"     TAG:",null,"  WIDTH","X","HEIGHT",null,null,null,"      WINDOW SKETCH FROM EXTERIOR",null,null,null,null,null,null,null,null,null,null,null,null,null,null,null,null,null,null,null,null,null,null,null,null,null,null,null,null,"OVER 9"]
["Model:",null,null,null,"X",null," "]
[null,null,null,"SPECIFY SIZING NEEDED"]
[null,null,null,"WINDOW DIMENSION"]
["Color:",null,null,"Operation:"]
[]
["Glass type:"]
[]
["Nail Fin: ",null,"Subframe Needed: ",null,"Panning Needed:"]
[]
["Additional Accessories:"]
[]
["Notes:"]
[]
["** If windows need to be quoted per project specs please include copy **"]
[null,"     TAG:",null,"  WIDTH","X","HEIGHT",null,null,null,"      WINDOW SKETCH FROM EXTERIOR"]
["Model:",null,null,null,"X",null," "]
[null,null,null,"SPECIFY SIZING NEEDED"]
[null,null,null,"ROUGH OPENING"]
["Color:",null,null,"Operation:"]
[]
["Glass type:"]
[]
["Nail Fin: ",null,"Subframe Needed: ",null,"Panning Needed:"]
[]
["Additional Accessories:"]
[]
["Notes:"]
[]
["** If windows need to be quoted per project specs please include copy **"]
[null,null,"Gerkin Windows & Doors",null,null,"Rhino Quote Sheet",null,null,null,null,null,null,null,null,"PAGE",null,null,null,2,null,"OF",{"$f":"AK2","v":0}]
[null,null,"P.O Box 3203"]
[null,null,"Sioux City IA.         51102"]
[null,null,"Phone: (402) 494-6000  (800) 475-5061",null,null,null,null,"Fax: (402) 494-6765",null,null,null,null,null,null,null,null,null,null,null,null,null,null,null,"Gerkin Rhino Qoute 02/17/2006"]
[null,"*** TO ENSURE QUICK AND ACCURATE QUOTE PLEASE ANSWER ALL QUESTIONS ***"]
[null,null,null,null,null,"DATE:"]
["Bid To:",{"$f":"bidto","v":0},null,"Contact:",{"$f":"contact","v":0},null,"Job Name:",null,null,null,{"$f":"jobname","v":0}]
["Address:",null,null,null,null,null,"Ship to City:",null,null,null,null,null,null,null,null,"State:",null,null,"Zip:",null,null,null,null,null,null,null,null,null,null,null,null,null,null,"YES",null,null,null,null,"NO",null,null,null,null,null,null,"NO"]
[{"$f":"adress","v":0},null,null,null,null,null,{"$f":"shptocity","v":0},null,null,null,null,null,null,null,null,{"$f":"shptostate","v":0},null,null,{"$f":"shptozip","v":0},null,null,null,null,null,null,null,null,null,null,null,null,null,null,"NO",null,null,null,null,"WITH FLANGE",null,null,null,null,null,null,"3/4\""]
["CITY:",null,null,"State:","Zip: ",null,"Project specs exsist:",null,null,null,null,null,null,"Gerkin Windows specified",null,null,null,null,null,null,null,null,null,null,null,null,null,null,null,null,null,null,null,null,null,null,null,null,"NO FLANGE",null,null,null,null,null,null,"1/2\""]
[{"$f":"city","v":0},null,null,{"$f":"state","v":0},{"$f":"zip","v":0}]
["Phone:",null,null,"   Fax / EMail: ",null,null,"Bid as a voluntary alternate:",null,null,null,null,null,null,null,null,null,null,null,null,null,null,null,null,null,null,null,null,null,null,null,null,null,null,null,null,null,null,null,"NONE",null,null,null,null,null,null,"NONE"]
[{"$f":"phone","v":0},null,null,{"$f":"email","v":0},null,null,null,null,null,null,null,null,null,null,null,null,null,null,null,null,null,null,null,null,null,null,null,null,null,null,null,null,null,null,null,null,null,null,"STANDARD",null,null,null,null,null,null,"RECTANGLE"]
["Project start date:",null,null,"Requested Number",null,null,"Building type:",null,null,null,null,null,null,null,null,null,"Number of stories:",null,null,null,null,null,null,null,null,null,null,null,null,null,null,null,null,null,null,null,null,null,"PRAIRIE",null,null,null,null,null,null,"CONTOUR"]
["Project finish date:",null,null,null,"of Deliveries:",null,null,null,null,null,null,null,null,null,null,null,null,null,null,null,null,null,null,null,null,null,null,null,null,null,null,null,null,null,null,null,null,null,"PRAIRIE 1"]
[null,"     TAG:",null,"  WIDTH","X","HEIGHT",null,null,null,"      WINDOW SKETCH FROM EXTERIOR",null,null,null,null,null,null,null,null,null,null,null,null,null,null,null,null,null,null,null,null,null,{"$f":"IF(A132>0,1,0)","v":0},null,null,null,null,null,null,"CUSTOM (PER SKETCH)"]
["Model:",null,null,null,"X",null," "]
[null,null,null,"SPECIFY SIZING NEEDED"]
[null,null,null,null,null,null,null,null,null,null,null,null,null,null,null,null,null,null,null,null,null,null,null,null,null,null,null,null,null,null,null,null,null,null,null,null,null,null,"ROUGH OPENING"]
["Color:",null,null,"Operation:",null,null,null,null,null,null,null,null,null,null,null,null,null,null,null,null,null,null,null,null,null,null,null,null,null,null,null,null,null,null,null,null,null,null,"WINDOW DIMENSION"]
[]
["Glass type:",null,null,null,null,null,null,null,null,null,null,null,null,null,null,null,null,null,null,null,null,null,null,null,null,null,null,null,null,null,null,null,null,null,null,null,null,null,1]
[null,null,null,null,null,null,null,null,null,null,null,null,null,null,null,null,null,null,null,null,null,null,null,null,null,null,null,null,null,null,null,null,null,null,null,null,null,null,2]
["Nail Fin: ",null,"Subframe Needed: ",null,"Panning Needed:",null,null,null,null,null,null,null,null,null,null,null,null,null,null,null,null,null,null,null,null,null,null,null,null,null,null,null,null,null,null,null,null,null,3]
[null,null,null,null,null,null,null,null,null,null,null,null,null,null,null,null,null,null,null,null,null,null,null,null,null,null,null,null,null,null,null,null,null,null,null,null,null,null,4]
["Additional Accessories:",null,null,null,null,null,null,null,null,null,null,null,null,null,null,null,null,null,null,null,null,null,null,null,null,null,null,null,null,null,null,null,null,null,null,null,null,null,5]
[null,null,null,null,null,null,null,null,null,null,null,null,null,null,null,null,null,null,null,null,null,null,null,null,null,null,null,null,null,null,null,null,null,null,null,null,null,null,6]
["Notes:",null,null,null,null,null,null,null,null,null,null,null,null,null,null,null,null,null,null,null,null,null,null,null,null,null,null,null,null,null,null,null,null,null,null,null,null,null,7]
[null,null,null,null,null,null,null,null,null,null,null,null,null,null,null,null,null,null,null,null,null,null,null,null,null,null,null,null,null,null,null,null,null,null,null,null,null,null,8]
["** If windows need to be quoted per project specs please include copy **",null,null,null,null,null,null,null,null,null,null,null,null,null,null,null,null,null,null,null,null,null,null,null,null,null,null,null,null,null,null,null,null,null,null,null,null,null,9]
[null,"     TAG:",null,"  WIDTH","X","HEIGHT",null,null,null,"      WINDOW SKETCH FROM EXTERIOR",null,null,null,null,null,null,null,null,null,null,null,null,null,null,null,null,null,null,null,null,null,null,null,null,null,null,null,null,"OVER 9"]
["Model:",null,null,null,"X",null," "]
[null,null,null,"SPECIFY SIZING NEEDED"]
[]
["Color:",null,null,"Operation:"]
[]
["Glass type:"]
[]
["Nail Fin: ",null,"Subframe Needed: ",null,"Panning Needed:"]
[]
["Additional Accessories:"]
[]
["Notes:"]
[]
["** If windows need to be quoted per project specs please include copy **"]
[null,"     TAG:",null,"  WIDTH","X","HEIGHT",null,null,null,"      WINDOW SKETCH FROM EXTERIOR"]
["Model:",null,null,null,"X",null," "]
[null,null,null,"SPECIFY SIZING NEEDED"]
[]
["Color:",null,null,"Operation:"]
[]
["Glass type:"]
[]
["Nail Fin: ",null,"Subframe Needed: ",null,"Panning Needed:"]
[]
["Additional Accessories:"]
[]
["Notes:"]
[]
["** If windows need to be quoted per project specs please include copy **"]
[null,null,"Gerkin Windows & Doors",null,null,"Rhino Quote Sheet",null,null,null,null,null,null,null,null,"PAGE",null,null,null,3,null,"OF",{"$f":"AK2","v":0}]
[null,null,"P.O Box 3203"]
[null,null,"Sioux City IA.         51102"]
[null,null,"Phone: (402) 494-6000  (800) 475-5061",null,null,null,null,"Fax: (402) 494-6765",null,null,null,null,null,null,null,null,null,null,null,null,null,null,null,"Gerkin Rhino Qoute 02/17/2006"]
[null,"*** TO ENSURE QUICK AND ACCURATE QUOTE PLEASE ANSWER ALL QUESTIONS ***"]
[null,null,null,null,null,"DATE:"]
["Bid To:",{"$f":"bidto","v":0},null,"Contact:",{"$f":"contact","v":0},null,"Job Name:",null,null,null,{"$f":"jobname","v":0}]
["Address:",null,null,null,null,null,"Ship to City:",null,null,null,null,null,null,null,null,"State:",null,null,"Zip:",null,null,null,null,null,null,null,null,null,null,null,null,null,null,"YES",null,null,null,null,"NO",null,null,null,null,null,null,"NO"]
[{"$f":"adress","v":0},null,null,null,null,null,{"$f":"shptocity","v":0},null,null,null,null,null,null,null,null,{"$f":"shptostate","v":0},null,null,{"$f":"shptozip","v":0},null,null,null,null,null,null,null,null,null,null,null,null,null,null,"NO",null,null,null,null,"WITH FLANGE",null,null,null,null,null,null,"3/4\""]
["CITY:",null,null,"State:","Zip: ",null,"Project specs exsist:",null,null,null,null,null,null,"Gerkin Windows specified",null,null,null,null,null,null,null,null,null,null,null,null,null,null,null,null,null,null,null,null,null,null,null,null,"NO FLANGE",null,null,null,null,null,null,"1/2\""]
[{"$f":"city","v":0},null,null,{"$f":"state","v":0},{"$f":"zip","v":0}]
["Phone:",null,null,"   Fax / EMail: ",null,null,"Bid as a voluntary alternate:",null,null,null,null,null,null,null,null,null,null,null,null,null,null,null,null,null,null,null,null,null,null,null,null,null,null,null,null,null,null,null,"NONE",null,null,null,null,null,null,"NONE"]
[{"$f":"phone","v":0},null,null,{"$f":"email","v":0},null,null,null,null,null,null,null,null,null,null,null,null,null,null,null,null,null,null,null,null,null,null,null,null,null,null,null,null,null,null,null,null,null,null,"STANDARD",null,null,null,null,null,null,"RECTANGLE"]
["Project start date:",null,null,"Requested Number",null,null,"Building type:",null,null,null,null,null,null,null,null,null,"Number of stories:",null,null,null,null,null,null,null,null,null,null,null,null,null,null,null,null,null,null,null,null,null,"PRAIRIE",null,null,null,null,null,null,"CONTOUR"]
["Project finish date:",null,null,null,"of Deliveries:",null,null,null,null,null,null,null,null,null,null,null,null,null,null,null,null,null,null,null,null,null,null,null,null,null,null,null,null,null,null,null,null,null,"PRAIRIE 1"]
[null,"     TAG:",null,"  WIDTH","X","HEIGHT",null,null,null,"      WINDOW SKETCH FROM EXTERIOR",null,null,null,null,null,null,null,null,null,null,null,null,null,null,null,null,null,null,null,null,null,{"$f":"IF(A192>0,1,0)","v":0},null,null,null,null,null,null,"CUSTOM (PER SKETCH)"]
["Model:",null,null,null,"X",null," "]
[null,null,null,"SPECIFY SIZING NEEDED"]
[null,null,null,null,null,null,null,null,null,null,null,null,null,null,null,null,null,null,null,null,null,null,null,null,null,null,null,null,null,null,null,null,null,null,null,null,null,null,"ROUGH OPENING"]
["Color:",null,null,"Operation:",null,null,null,null,null,null,null,null,null,null,null,null,null,null,null,null,null,null,null,null,null,null,null,null,null,null,null,null,null,null,null,null,null,null,"WINDOW DIMENSION"]
[]
["Glass type:",null,null,null,null,null,null,null,null,null,null,null,null,null,null,null,null,null,null,null,null,null,null,null,null,null,null,null,null,null,null,null,null,null,null,null,null,null,1]
[null,null,null,null,null,null,null,null,null,null,null,null,null,null,null,null,null,null,null,null,null,null,null,null,null,null,null,null,null,null,null,null,null,null,null,null,null,null,2]
["Nail Fin: ",null,"Subframe Needed: ",null,"Panning Needed:",null,null,null,null,null,null,null,null,null,null,null,null,null,null,null,null,null,null,null,null,null,null,null,null,null,null,null,null,null,null,null,null,null,3]
[null,null,null,null,null,null,null,null,null,null,null,null,null,null,null,null,null,null,null,null,null,null,null,null,null,null,null,null,null,null,null,null,null,null,null,null,null,null,4]
["Additional Accessories:",null,null,null,null,null,null,null,null,null,null,null,null,null,null,null,null,null,null,null,null,null,null,null,null,null,null,null,null,null,null,null,null,null,null,null,null,null,5]
[null,null,null,null,null,null,null,null,null,null,null,null,null,null,null,null,null,null,null,null,null,null,null,null,null,null,null,null,null,null,null,null,null,null,null,null,null,null,6]
["Notes:",null,null,null,null,null,null,null,null,null,null,null,null,null,null,null,null,null,null,null,null,null,null,null,null,null,null,null,null,null,null,null,null,null,null,null,null,null,7]
[null,null,null,null,null,null,null,null,null,null,null,null,null,null,null,null,null,null,null,null,null,null,null,null,null,null,null,null,null,null,null,null,null,null,null,null,null,null,8]
["** If windows need to be quoted per project specs please include copy **",null,null,null,null,null,null,null,null,null,null,null,null,null,null,null,null,null,null,null,null,null,null,null,null,null,null,null,null,null,null,null,null,null,null,null,null,null,9]
[null,"     TAG:",null,"  WIDTH","X","HEIGHT",null,null,null,"      WINDOW SKETCH FROM EXTERIOR",null,null,null,null,null,null,null,null,null,null,null,null,null,null,null,null,null,null,null,null,null,null,null,null,null,null,null,null,"OVER 9"]
["Model:",null,null,null,"X",null," "]
[null,null,null,"SPECIFY SIZING NEEDED"]
[]
["Color:",null,null,"Operation:"]
[]
["Glass type:"]
[]
["Nail Fin: ",null,"Subframe Needed: ",null,"Panning Needed:"]
[]
["Additional Accessories:"]
[]
["Notes:"]
[]
["** If windows need to be quoted per project specs please include copy **"]
[null,"     TAG:",null,"  WIDTH","X","HEIGHT",null,null,null,"      WINDOW SKETCH FROM EXTERIOR"]
["Model:",null,null,null,"X",null," "]
[null,null,null,"SPECIFY SIZING NEEDED"]
[]
["Color:",null,null,"Operation:"]
[]
["Glass type:"]
[]
["Nail Fin: ",null,"Subframe Needed: ",null,"Panning Needed:"]
[]
["Additional Accessories:"]
[]
["Notes:"]
[]
["** If windows need to be quoted per project specs please include copy **"]
[null,null,"Gerkin Windows & Doors",null,null,"Rhino Quote Sheet",null,null,null,null,null,null,null,null,"PAGE",null,null,null,4,null,"OF",{"$f":"AK2","v":0}]
[null,null,"P.O Box 3203"]
[null,null,"Sioux City IA.         51102"]
[null,null,"Phone: (402) 494-6000  (800) 475-5061",null,null,null,null,"Fax: (402) 494-6765",null,null,null,null,null,null,null,null,null,null,null,null,null,null,null,"Gerkin Rhino Qoute 02/17/2006"]
[null,"*** TO ENSURE QUICK AND ACCURATE QUOTE PLEASE ANSWER ALL QUESTIONS ***"]
[null,null,null,null,null,"DATE:"]
["Bid To:",{"$f":"bidto","v":0},null,"Contact:",{"$f":"contact","v":0},null,"Job Name:",null,null,null,{"$f":"jobname","v":0}]
["Address:",null,null,null,null,null,"Ship to City:",null,null,null,null,null,null,null,null,"State:",null,null,"Zip:",null,null,null,null,null,null,null,null,null,null,null,null,null,null,"YES",null,null,null,null,"NO",null,null,null,null,null,null,"NO"]
[{"$f":"adress","v":0},null,null,null,null,null,{"$f":"shptocity","v":0},null,null,null,null,null,null,null,null,{"$f":"shptostate","v":0},null,null,{"$f":"shptozip","v":0},null,null,null,null,null,null,null,null,null,null,null,null,null,null,"NO",null,null,null,null,"WITH FLANGE",null,null,null,null,null,null,"3/4\""]
["CITY:",null,null,"State:","Zip: ",null,"Project specs exsist:",null,null,null,null,null,null,"Gerkin Windows specified",null,null,null,null,null,null,null,null,null,null,null,null,null,null,null,null,null,null,null,null,null,null,null,null,"NO FLANGE",null,null,null,null,null,null,"1/2\""]
[{"$f":"city","v":0},null,null,{"$f":"state","v":0},{"$f":"zip","v":0}]
["Phone:",null,null,"   Fax / EMail: ",null,null,"Bid as a voluntary alternate:",null,null,null,null,null,null,null,null,null,null,null,null,null,null,null,null,null,null,null,null,null,null,null,null,null,null,null,null,null,null,null,"NONE",null,null,null,null,null,null,"NONE"]
[{"$f":"phone","v":0},null,null,{"$f":"email","v":0},null,null,null,null,null,null,null,null,null,null,null,null,null,null,null,null,null,null,null,null,null,null,null,null,null,null,null,null,null,null,null,null,null,null,"STANDARD",null,null,null,null,null,null,"RECTANGLE"]
["Project start date:",null,null,"Requested Number",null,null,"Building type:",null,null,null,null,null,null,null,null,null,"Number of stories:",null,null,null,null,null,null,null,null,null,null,null,null,null,null,null,null,null,null,null,null,null,"PRAIRIE",null,null,null,null,null,null,"CONTOUR"]
["Project finish date:",null,null,null,"of Deliveries:",null,null,null,null,null,null,null,null,null,null,null,null,null,null,null,null,null,null,null,null,null,null,null,null,null,null,null,null,null,null,null,null,null,"PRAIRIE 1"]
[null,"     TAG:",null,"  WIDTH","X","HEIGHT",null,null,null,"      WINDOW SKETCH FROM EXTERIOR",null,null,null,null,null,null,null,null,null,null,null,null,null,null,null,null,null,null,null,null,null,{"$f":"IF(A252>0,1,0)","v":0},null,null,null,null,null,null,"CUSTOM (PER SKETCH)"]
["Model:",null,null,null,"X",null," "]
[null,null,null,"SPECIFY SIZING NEEDED"]
[null,null,null,null,null,null,null,null,null,null,null,null,null,null,null,null,null,null,null,null,null,null,null,null,null,null,null,null,null,null,null,null,null,null,null,null,null,null,"ROUGH OPENING"]
["Color:",null,null,"Operation:",null,null,null,null,null,null,null,null,null,null,null,null,null,null,null,null,null,null,null,null,null,null,null,null,null,null,null,null,null,null,null,null,null,null,"WINDOW DIMENSION"]
[]
["Glass type:",null,null,null,null,null,null,null,null,null,null,null,null,null,null,null,null,null,null,null,null,null,null,null,null,null,null,null,null,null,null,null,null,null,null,null,null,null,1]
[null,null,null,null,null,null,null,null,null,null,null,null,null,null,null,null,null,null,null,null,null,null,null,null,null,null,null,null,null,null,null,null,null,null,null,null,null,null,2]
["Nail Fin: ",null,"Subframe Needed: ",null,"Panning Needed:",null,null,null,null,null,null,null,null,null,null,null,null,null,null,null,null,null,null,null,null,null,null,null,null,null,null,null,null,null,null,null,null,null,3]
[null,null,null,null,null,null,null,null,null,null,null,null,null,null,null,null,null,null,null,null,null,null,null,null,null,null,null,null,null,null,null,null,null,null,null,null,null,null,4]
["Additional Accessories:",null,null,null,null,null,null,null,null,null,null,null,null,null,null,null,null,null,null,null,null,null,null,null,null,null,null,null,null,null,null,null,null,null,null,null,null,null,5]
[null,null,null,null,null,null,null,null,null,null,null,null,null,null,null,null,null,null,null,null,null,null,null,null,null,null,null,null,null,null,null,null,null,null,null,null,null,null,6]
["Notes:",null,null,null,null,null,null,null,null,null,null,null,null,null,null,null,null,null,null,null,null,null,null,null,null,null,null,null,null,null,null,null,null,null,null,null,null,null,7]
[null,null,null,null,null,null,null,null,null,null,null,null,null,null,null,null,null,null,null,null,null,null,null,null,null,null,null,null,null,null,null,null,null,null,null,null,null,null,8]
["** If windows need to be quoted per project specs please include copy **",null,null,null,null,null,null,null,null,null,null,null,null,null,null,null,null,null,null,null,null,null,null,null,null,null,null,null,null,null,null,null,null,null,null,null,null,null,9]
[null,"     TAG:",null,"  WIDTH","X","HEIGHT",null,null,null,"      WINDOW SKETCH FROM EXTERIOR",null,null,null,null,null,null,null,null,null,null,null,null,null,null,null,null,null,null,null,null,null,null,null,null,null,null,null,null,"OVER 9"]
["Model:",null,null,null,"X",null," "]
[null,null,null,"SPECIFY SIZING NEEDED"]
[]
["Color:",null,null,"Operation:"]
[]
["Glass type:"]
[]
["Nail Fin: ",null,"Subframe Needed: ",null,"Panning Needed:"]
[]
["Additional Accessories:"]
[]
["Notes:"]
[]
["** If windows need to be quoted per project specs please include copy **"]
[null,"     TAG:",null,"  WIDTH","X","HEIGHT",null,null,null,"      WINDOW SKETCH FROM EXTERIOR"]
["Model:",null,null,null,"X",null," "]
[null,null,null,"SPECIFY SIZING NEEDED"]
[]
["Color:",null,null,"Operation:"]
[]
["Glass type:"]
[]
["Nail Fin: ",null,"Subframe Needed: ",null,"Panning Needed:"]
[]
["Additional Accessories:"]
[]
["Notes:"]
[]
["** If windows need to be quoted per project specs please include copy **"]
[null,null,"Gerkin Windows & Doors",null,null,"Rhino Quote Sheet",null,null,null,null,null,null,null,null,"PAGE",null,null,null,5,null,"OF",{"$f":"AK2","v":0}]
[null,null,"P.O Box 3203"]
[null,null,"Sioux City IA.         51102"]
[null,null,"Phone: (402) 494-6000  (800) 475-5061",null,null,null,null,"Fax: (402) 494-6765",null,null,null,null,null,null,null,null,null,null,null,null,null,null,null,"Gerkin Rhino Qoute 02/17/2006"]
[null,"*** TO ENSURE QUICK AND ACCURATE QUOTE PLEASE ANSWER ALL QUESTIONS ***"]
[null,null,null,null,null,"DATE:"]
["Bid To:",{"$f":"bidto","v":0},null,"Contact:",{"$f":"contact","v":0},null,"Job Name:",null,null,null,{"$f":"jobname","v":0}]
["Address:",null,null,null,null,null,"Ship to City:",null,null,null,null,null,null,null,null,"State:",null,null,"Zip:",null,null,null,null,null,null,null,null,null,null,null,null,null,null,"YES",null,null,null,null,"NO",null,null,null,null,null,null,"NO"]
[{"$f":"adress","v":0},null,null,null,null,null,{"$f":"shptocity","v":0},null,null,null,null,null,null,null,null,{"$f":"shptostate","v":0},null,null,{"$f":"shptozip","v":0},null,null,null,null,null,null,null,null,null,null,null,null,null,null,"NO",null,null,null,null,"WITH FLANGE",null,null,null,null,null,null,"3/4\""]
["CITY:",null,null,"State:","Zip: ",null,"Project specs exsist:",null,null,null,null,null,null,"Gerkin Windows specified",null,null,null,null,null,null,null,null,null,null,null,null,null,null,null,null,null,null,null,null,null,null,null,null,"NO FLANGE",null,null,null,null,null,null,"1/2\""]
[{"$f":"city","v":0},null,null,{"$f":"state","v":0},{"$f":"zip","v":0}]
["Phone:",null,null,"   Fax / EMail: ",null,null,"Bid as a voluntary alternate:",null,null,null,null,null,null,null,null,null,null,null,null,null,null,null,null,null,null,null,null,null,null,null,null,null,null,null,null,null,null,null,"NONE",null,null,null,null,null,null,"NONE"]
[{"$f":"phone","v":0},null,null,{"$f":"email","v":0},null,null,null,null,null,null,null,null,null,null,null,null,null,null,null,null,null,null,null,null,null,null,null,null,null,null,null,null,null,null,null,null,null,null,"STANDARD",null,null,null,null,null,null,"RECTANGLE"]
["Project start date:",null,null,"Requested Number",null,null,"Building type:",null,null,null,null,null,null,null,null,null,"Number of stories:",null,null,null,null,null,null,null,null,null,null,null,null,null,null,null,null,null,null,null,null,null,"PRAIRIE",null,null,null,null,null,null,"CONTOUR"]
["Project finish date:",null,null,null,"of Deliveries:",null,null,null,null,null,null,null,null,null,null,null,null,null,null,null,null,null,null,null,null,null,null,null,null,null,null,null,null,null,null,null,null,null,"PRAIRIE 1"]
[null,"     TAG:",null,"  WIDTH","X","HEIGHT",null,null,null,"      WINDOW SKETCH FROM EXTERIOR",null,null,null,null,null,null,null,null,null,null,null,null,null,null,null,null,null,null,null,null,null,{"$f":"IF(A312>0,1,0)","v":0},null,null,null,null,null,null,"CUSTOM (PER SKETCH)"]
["Model:",null,null,null,"X",null," "]
[null,null,null,"SPECIFY SIZING NEEDED"]
[null,null,null,null,null,null,null,null,null,null,null,null,null,null,null,null,null,null,null,null,null,null,null,null,null,null,null,null,null,null,null,null,null,null,null,null,null,null,"ROUGH OPENING"]
["Color:",null,null,"Operation:",null,null,null,null,null,null,null,null,null,null,null,null,null,null,null,null,null,null,null,null,null,null,null,null,null,null,null,null,null,null,null,null,null,null,"WINDOW DIMENSION"]
[]
["Glass type:",null,null,null,null,null,null,null,null,null,null,null,null,null,null,null,null,null,null,null,null,null,null,null,null,null,null,null,null,null,null,null,null,null,null,null,null,null,1]
[null,null,null,null,null,null,null,null,null,null,null,null,null,null,null,null,null,null,null,null,null,null,null,null,null,null,null,null,null,null,null,null,null,null,null,null,null,null,2]
["Nail Fin: ",null,"Subframe Needed: ",null,"Panning Needed:",null,null,null,null,null,null,null,null,null,null,null,null,null,null,null,null,null,null,null,null,null,null,null,null,null,null,null,null,null,null,null,null,null,3]
[null,null,null,null,null,null,null,null,null,null,null,null,null,null,null,null,null,null,null,null,null,null,null,null,null,null,null,null,null,null,null,null,null,null,null,null,null,null,4]
["Additional Accessories:",null,null,null,null,null,null,null,null,null,null,null,null,null,null,null,null,null,null,null,null,null,null,null,null,null,null,null,null,null,null,null,null,null,null,null,null,null,5]
[null,null,null,null,null,null,null,null,null,null,null,null,null,null,null,null,null,null,null,null,null,null,null,null,null,null,null,null,null,null,null,null,null,null,null,null,null,null,6]
["Notes:",null,null,null,null,null,null,null,null,null,null,null,null,null,null,null,null,null,null,null,null,null,null,null,null,null,null,null,null,null,null,null,null,null,null,null,null,null,7]
[null,null,null,null,null,null,null,null,null,null,null,null,null,null,null,null,null,null,null,null,null,null,null,null,null,null,null,null,null,null,null,null,null,null,null,null,null,null,8]
["** If windows need to be quoted per project specs please include copy **",null,null,null,null,null,null,null,null,null,null,null,null,null,null,null,null,null,null,null,null,null,null,null,null,null,null,null,null,null,null,null,null,null,null,null,null,null,9]
[null,"     TAG:",null,"  WIDTH","X","HEIGHT",null,null,null,"      WINDOW SKETCH FROM EXTERIOR",null,null,null,null,null,null,null,null,null,null,null,null,null,null,null,null,null,null,null,null,null,null,null,null,null,null,null,null,"OVER 9"]
["Model:",null,null,null,"X",null," "]
[null,null,null,"SPECIFY SIZING NEEDED"]
[]
["Color:",null,null,"Operation:"]
[]
["Glass type:"]
[]
["Nail Fin: ",null,"Subframe Needed: ",null,"Panning Needed:"]
[]
["Additional Accessories:"]
[]
["Notes:"]
[]
["** If windows need to be quoted per project specs please include copy **"]
[null,"     TAG:",null,"  WIDTH","X","HEIGHT",null,null,null,"      WINDOW SKETCH FROM EXTERIOR"]
["Model:",null,null,null,"X",null," "]
[null,null,null,"SPECIFY SIZING NEEDED"]
[]
["Color:",null,null,"Operation:"]
[]
["Glass type:"]
[]
["Nail Fin: ",null,"Subframe Needed: ",null,"Panning Needed:"]
[]
["Additional Accessories:"]
[]
["Notes:"]
[]
["** If windows need to be quoted per project specs please include copy **"]
[null,null,"Gerkin Windows & Doors",null,null,"Rhino Quote Sheet",null,null,null,null,null,null,null,null,"PAGE",null,null,null,6,null,"OF",{"$f":"AK2","v":0}]
[null,null,"P.O Box 3203"]
[null,null,"Sioux City IA.         51102"]
[null,null,"Phone: (402) 494-6000  (800) 475-5061",null,null,null,null,"Fax: (402) 494-6765",null,null,null,null,null,null,null,null,null,null,null,null,null,null,null,"Gerkin Rhino Qoute 02/17/2006"]
[null,"*** TO ENSURE QUICK AND ACCURATE QUOTE PLEASE ANSWER ALL QUESTIONS ***"]
[null,null,null,null,null,"DATE:"]
["Bid To:",{"$f":"bidto","v":0},null,"Contact:",{"$f":"contact","v":0},null,"Job Name:",null,null,null,{"$f":"jobname","v":0}]
["Address:",null,null,null,null,null,"Ship to City:",null,null,null,null,null,null,null,null,"State:",null,null,"Zip:",null,null,null,null,null,null,null,null,null,null,null,null,null,null,"YES",null,null,null,null,"NO",null,null,null,null,null,null,"NO"]
[{"$f":"adress","v":0},null,null,null,null,null,{"$f":"shptocity","v":0},null,null,null,null,null,null,null,null,{"$f":"shptostate","v":0},null,null,{"$f":"shptozip","v":0},null,null,null,null,null,null,null,null,null,null,null,null,null,null,"NO",null,null,null,null,"WITH FLANGE",null,null,null,null,null,null,"3/4\""]
["CITY:",null,null,"State:","Zip: ",null,"Project specs exsist:",null,null,null,null,null,null,"Gerkin Windows specified",null,null,null,null,null,null,null,null,null,null,null,null,null,null,null,null,null,null,null,null,null,null,null,null,"NO FLANGE",null,null,null,null,null,null,"1/2\""]
[{"$f":"city","v":0},null,null,{"$f":"state","v":0},{"$f":"zip","v":0}]
["Phone:",null,null,"   Fax / EMail: ",null,null,"Bid as a voluntary alternate:",null,null,null,null,null,null,null,null,null,null,null,null,null,null,null,null,null,null,null,null,null,null,null,null,null,null,null,null,null,null,null,"NONE",null,null,null,null,null,null,"NONE"]
[{"$f":"phone","v":0},null,null,{"$f":"email","v":0},null,null,null,null,null,null,null,null,null,null,null,null,null,null,null,null,null,null,null,null,null,null,null,null,null,null,null,null,null,null,null,null,null,null,"STANDARD",null,null,null,null,null,null,"RECTANGLE"]
["Project start date:",null,null,"Requested Number",null,null,"Building type:",null,null,null,null,null,null,null,null,null,"Number of stories:",null,null,null,null,null,null,null,null,null,null,null,null,null,null,null,null,null,null,null,null,null,"PRAIRIE",null,null,null,null,null,null,"CONTOUR"]
["Project finish date:",null,null,null,"of Deliveries:",null,null,null,null,null,null,null,null,null,null,null,null,null,null,null,null,null,null,null,null,null,null,null,null,null,null,null,null,null,null,null,null,null,"PRAIRIE 1"]
[null,"     TAG:",null,"  WIDTH","X","HEIGHT",null,null,null,"      WINDOW SKETCH FROM EXTERIOR",null,null,null,null,null,null,null,null,null,null,null,null,null,null,null,null,null,null,null,null,null,{"$f":"IF(A372>0,1,0)","v":0},null,null,null,null,null,null,"CUSTOM (PER SKETCH)"]
["Model:",null,null,null,"X",null," "]
[null,null,null,"SPECIFY SIZING NEEDED"]
[null,null,null,null,null,null,null,null,null,null,null,null,null,null,null,null,null,null,null,null,null,null,null,null,null,null,null,null,null,null,null,null,null,null,null,null,null,null,"ROUGH OPENING"]
["Color:",null,null,"Operation:",null,null,null,null,null,null,null,null,null,null,null,null,null,null,null,null,null,null,null,null,null,null,null,null,null,null,null,null,null,null,null,null,null,null,"WINDOW DIMENSION"]
[]
["Glass type:",null,null,null,null,null,null,null,null,null,null,null,null,null,null,null,null,null,null,null,null,null,null,null,null,null,null,null,null,null,null,null,null,null,null,null,null,null,1]
[null,null,null,null,null,null,null,null,null,null,null,null,null,null,null,null,null,null,null,null,null,null,null,null,null,null,null,null,null,null,null,null,null,null,null,null,null,null,2]
["Nail Fin: ",null,"Subframe Needed: ",null,"Panning Needed:",null,null,null,null,null,null,null,null,null,null,null,null,null,null,null,null,null,null,null,null,null,null,null,null,null,null,null,null,null,null,null,null,null,3]
[null,null,null,null,null,null,null,null,null,null,null,null,null,null,null,null,null,null,null,null,null,null,null,null,null,null,null,null,null,null,null,null,null,null,null,null,null,null,4]
["Additional Accessories:",null,null,null,null,null,null,null,null,null,null,null,null,null,null,null,null,null,null,null,null,null,null,null,null,null,null,null,null,null,null,null,null,null,null,null,null,null,5]
[null,null,null,null,null,null,null,null,null,null,null,null,null,null,null,null,null,null,null,null,null,null,null,null,null,null,null,null,null,null,null,null,null,null,null,null,null,null,6]
["Notes:",null,null,null,null,null,null,null,null,null,null,null,null,null,null,null,null,null,null,null,null,null,null,null,null,null,null,null,null,null,null,null,null,null,null,null,null,null,7]
[null,null,null,null,null,null,null,null,null,null,null,null,null,null,null,null,null,null,null,null,null,null,null,null,null,null,null,null,null,null,null,null,null,null,null,null,null,null,8]
["** If windows need to be quoted per project specs please include copy **",null,null,null,null,null,null,null,null,null,null,null,null,null,null,null,null,null,null,null,null,null,null,null,null,null,null,null,null,null,null,null,null,null,null,null,null,null,9]
[null,"     TAG:",null,"  WIDTH","X","HEIGHT",null,null,null,"      WINDOW SKETCH FROM EXTERIOR",null,null,null,null,null,null,null,null,null,null,null,null,null,null,null,null,null,null,null,null,null,null,null,null,null,null,null,null,"OVER 9"]
["Model:",null,null,null,"X",null," "]
[null,null,null,"SPECIFY SIZING NEEDED"]
[]
["Color:",null,null,"Operation:"]
[]
["Glass type:"]
[]
["Nail Fin: ",null,"Subframe Needed: ",null,"Panning Needed:"]
[]
["Additional Accessories:"]
[]
["Notes:"]
[]
["** If windows need to be quoted per project specs please include copy **"]
[null,"     TAG:",null,"  WIDTH","X","HEIGHT",null,null,null,"      WINDOW SKETCH FROM EXTERIOR"]
["Model:",null,null,null,"X",null," "]
[null,null,null,"SPECIFY SIZING NEEDED"]
[]
["Color:",null,null,"Operation:"]
[]
["Glass type:"]
[]
["Nail Fin: ",null,"Subframe Needed: ",null,"Panning Needed:"]
[]
["Additional Accessories:"]
[]
["Notes:"]
[]
["** If windows need to be quoted per project specs please include copy **"]
[null,null,"Gerkin Windows & Doors",null,null,"Rhino Quote Sheet",null,null,null,null,null,null,null,null,"PAGE",null,null,null,7,null,"OF",{"$f":"AK2","v":0}]
[null,null,"P.O Box 3203"]
[null,null,"Sioux City IA.         51102"]
[null,null,"Phone: (402) 494-6000  (800) 475-5061",null,null,null,null,"Fax: (402) 494-6765",null,null,null,null,null,null,null,null,null,null,null,null,null,null,null,"Gerkin Rhino Qoute 02/17/2006"]

{"sheet":"Drawings","index":1,"n_rows":24,"n_cols":15,"rows_kept":24,"cut":false,"hidden":false,"merged":[]}
[]
[]
[]
[null,"Window Drawings right click window needed select copy ",null,null,null,null,null,null,null,null,"Operation Drawings right click Operattion needed select copy "]
[]
[]
[]
[]
[]
[]
[null,null,null,null,null,null,null,null,null,null,"Awning",null,"Slider OX",null,"Top Sash ( DH )"]
[]
[]
[]
[]
[null,null,null,null,null,null,null,null,null,null,"Hopper",null,"Slider XO",null,"Bottom Sash ( SH / DH )"]
[]
[]
[]
[]
[]
[]
[]
[null,null,null,null,null,null,null,null,null,null,"Casement LH",null,"Casement RH",null,"Louver 22\" Height min 48\" Width Min"]